[Event "Live Chess"]
[Site "Chess.com"]
[Date "2023.05.20"]
[Round "-"]
[White "xx_blindpuffin_xx"]
[Black "Long1968"]
[Result "1-0"]
[WhiteElo "2194"]
[BlackElo "1172"]
[TimeControl "300"]
[EndTime "14:48:14 PDT"]
[Termination "xx_blindpuffin_xx won on time"]

1. d4 {[%clk 0:04:56.3]} 1... e6 {[%clk 0:04:57.6]} 2. Bf4 {[%clk 0:04:54.4]}
2... c5 {[%clk 0:04:54.3]} 3. e3 {[%clk 0:04:50.9]} 3... Nc6 {[%clk 0:04:51.2]}
4. c3 {[%clk 0:04:45]} 4... Nf6 {[%clk 0:04:46.9]} 5. Nf3 {[%clk 0:04:38.6]}
5... d5 {[%clk 0:04:43.2]} 6. Nbd2 {[%clk 0:04:37.3]} 6... Bd6 {[%clk
0:04:39.4]} 7. Bg3 {[%clk 0:04:34.8]} 7... O-O {[%clk 0:04:35.5]} 8. Bd3 {[%clk
0:04:33.3]} 8... Bxg3 {[%clk 0:04:28.3]} 9. hxg3 {[%clk 0:04:31.5]} 9... g6
{[%clk 0:04:20.8]} 10. Qe2 {[%clk 0:04:26.9]} 10... cxd4 {[%clk 0:04:03.4]} 11.
exd4 {[%clk 0:04:25.3]} 11... b6 {[%clk 0:03:57.7]} 12. O-O-O {[%clk 0:04:14.9]}
12... Re8 {[%clk 0:03:37.8]} 13. Ne5 {[%clk 0:04:09.5]} 13... Nxe5 {[%clk
0:03:27.9]} 14. dxe5 {[%clk 0:04:07.6]} 14... Nd7 {[%clk 0:03:19.2]} 15. Qe3
{[%clk 0:04:03.5]} 15... Nf8 {[%clk 0:03:09.5]} 16. Nf3 {[%clk 0:03:49.3]} 16...
f6 {[%clk 0:02:58.9]} 17. Nd4 {[%clk 0:03:30.4]} 17... Qe7 {[%clk 0:02:24.5]}
18. f4 {[%clk 0:03:18.6]} 18... f5 {[%clk 0:02:04.6]} 19. g4 {[%clk 0:03:15.6]}
19... Bd7 {[%clk 0:01:37]} 20. gxf5 {[%clk 0:03:14]} 20... exf5 {[%clk
0:01:13.5]} 21. Bc2 {[%clk 0:02:59]} 21... Rac8 {[%clk 0:00:54.4]} 22. Bb3
{[%clk 0:02:57.5]} 22... Be6 {[%clk 0:00:45.9]} 23. Nxe6 {[%clk 0:02:56.4]}
23... Qxe6 {[%clk 0:00:42.4]} 24. Bxd5 {[%clk 0:02:54.6]} 24... Qxd5 {[%clk
0:00:27.7]} 25. Rxd5 {[%clk 0:02:53.2]} 25... Ne6 {[%clk 0:00:22.1]} 26. Qh3
{[%clk 0:02:50.9]} 26... Rc7 {[%clk 0:00:16.5]} 27. g3 {[%clk 0:02:49.1]} 27...
Nc5 {[%clk 0:00:09.9]} 28. Rd6 {[%clk 0:02:43.4]} 28... Ne6 {[%clk 0:00:03.2]}
29. Rhd1 {[%clk 0:02:41.1]} 1-0

[Event "Live Chess"]
[Site "Chess.com"]
[Date "2023.05.20"]
[Round "-"]
[White "parcellforce"]
[Black "SupremeTactician"]
[Result "0-1"]
[WhiteElo "1385"]
[BlackElo "2367"]
[TimeControl "300"]
[EndTime "14:48:16 PDT"]
[Termination "SupremeTactician won by resignation"]

1. d4 {[%clk 0:04:59]} 1... Nf6 {[%clk 0:04:58.5]} 2. c4 {[%clk 0:04:58.9]} 2...
e6 {[%clk 0:04:58]} 3. Nc3 {[%clk 0:04:58.7]} 3... Bb4 {[%clk 0:04:56.8]} 4. Nf3
{[%clk 0:04:58.6]} 4... O-O {[%clk 0:04:55.6]} 5. e3 {[%clk 0:04:57.2]} 5... d5
{[%clk 0:04:54.8]} 6. cxd5 {[%clk 0:04:56]} 6... exd5 {[%clk 0:04:54.7]} 7. a3
{[%clk 0:04:55.2]} 7... Bxc3+ {[%clk 0:04:52.4]} 8. bxc3 {[%clk 0:04:55.1]} 8...
c5 {[%clk 0:04:52]} 9. Be2 {[%clk 0:04:53.5]} 9... cxd4 {[%clk 0:04:51]} 10.
cxd4 {[%clk 0:04:53.4]} 10... Nc6 {[%clk 0:04:50.5]} 11. O-O {[%clk 0:04:52.2]}
11... Bf5 {[%clk 0:04:48.6]} 12. Bd3 {[%clk 0:04:50.9]} 12... Be4 {[%clk
0:04:47.2]} 13. Bxe4 {[%clk 0:04:49.3]} 13... Nxe4 {[%clk 0:04:47.1]} 14. Nd2
{[%clk 0:04:49.2]} 14... f5 {[%clk 0:04:45.5]} 15. Nxe4 {[%clk 0:04:48.8]} 15...
fxe4 {[%clk 0:04:45.4]} 16. Bb2 {[%clk 0:04:46.5]} 16... Qg5 {[%clk 0:04:41.8]}
17. Rc1 {[%clk 0:04:41.7]} 17... Rf6 {[%clk 0:04:29.5]} 18. h3 {[%clk
0:04:39.8]} 18... Raf8 {[%clk 0:04:27.5]} 19. Qg4 {[%clk 0:04:39.3]} 19... Qh6
{[%clk 0:04:22.2]} 20. Qd7 {[%clk 0:04:26.4]} 20... Rd6 {[%clk 0:03:48.3]} 21.
Qxb7 {[%clk 0:04:18.5]} 21... Rb8 {[%clk 0:03:39.6]} 22. Qxb8+ {[%clk
0:04:02.1]} 22... Nxb8 {[%clk 0:03:37.7]} 23. Rc8+ {[%clk 0:04:01.4]} 23... Kf7
{[%clk 0:03:36.1]} 24. Rxb8 {[%clk 0:04:00.5]} 24... Rb6 {[%clk 0:03:35]} 25.
Rxb6 {[%clk 0:03:52.4]} 25... Qxb6 {[%clk 0:03:34.9]} 26. Bc3 {[%clk 0:03:43.2]}
26... Qb3 {[%clk 0:03:25.4]} 27. Bb4 {[%clk 0:03:41.3]} 27... Qb2 {[%clk
0:03:21.3]} 28. f4 {[%clk 0:03:29.9]} 28... a5 {[%clk 0:03:04.1]} 29. Bc5 {[%clk
0:03:28.8]} 29... Qe2 {[%clk 0:03:00.1]} 30. g4 {[%clk 0:03:09.6]} 30... Qxe3+
{[%clk 0:02:57.2]} 31. Kh2 {[%clk 0:03:09.3]} 31... Qe2+ {[%clk 0:02:55.7]} 32.
Kg1 {[%clk 0:03:07.5]} 32... e3 {[%clk 0:02:54.3]} 33. f5 {[%clk 0:02:59.8]}
33... Qd2 {[%clk 0:02:49.9]} 0-1

[Event "Live Chess"]
[Site "Chess.com"]
[Date "2023.05.20"]
[Round "-"]
[White "mikkyb4"]
[Black "Nazar_777"]
[Result "0-1"]
[WhiteElo "1008"]
[BlackElo "1607"]
[TimeControl "300"]
[EndTime "14:48:17 PDT"]
[Termination "Nazar_777 won by checkmate"]

1. e4 {[%clk 0:04:58.5]} 1... e6 {[%clk 0:04:53.8]} 2. b3 {[%clk 0:04:55.8]}
2... a6 {[%clk 0:04:53.1]} 3. Bb2 {[%clk 0:04:54.2]} 3... h5 {[%clk 0:04:52.4]}
4. d4 {[%clk 0:04:49.1]} 4... c5 {[%clk 0:04:51.8]} 5. Nf3 {[%clk 0:04:44.8]}
5... cxd4 {[%clk 0:04:50.8]} 6. Nxd4 {[%clk 0:04:40.7]} 6... Nf6 {[%clk
0:04:50]} 7. e5 {[%clk 0:04:38.7]} 7... Ng4 {[%clk 0:04:48.9]} 8. f3 {[%clk
0:04:27.1]} 8... Nxe5 {[%clk 0:04:46.6]} 9. Nd2 {[%clk 0:04:17.4]} 9... Nec6
{[%clk 0:04:44.4]} 10. Nxc6 {[%clk 0:04:11]} 10... Nxc6 {[%clk 0:04:43.2]} 11.
Bd3 {[%clk 0:04:07.7]} 11... Bc5 {[%clk 0:04:41.8]} 12. Qe2 {[%clk 0:04:01.5]}
12... Qb6 {[%clk 0:04:39.4]} 13. Ne4 {[%clk 0:03:54.4]} 13... Bd4 {[%clk
0:04:35.1]} 14. c3 {[%clk 0:03:51.2]} 14... Bf6 {[%clk 0:04:29.8]} 15. Nxf6+
{[%clk 0:03:47.7]} 15... gxf6 {[%clk 0:04:28.6]} 16. Rd1 {[%clk 0:03:31.5]}
16... Ne5 {[%clk 0:04:26.5]} 17. Bc2 {[%clk 0:03:28.7]} 17... Qc7 {[%clk
0:04:25]} 18. c4 {[%clk 0:03:26.2]} 18... b6 {[%clk 0:04:22.5]} 19. O-O {[%clk
0:03:21.4]} 19... Bb7 {[%clk 0:04:09.9]} 20. Ba3 {[%clk 0:03:18.2]} 20... Ng6
{[%clk 0:03:53.7]} 21. Bd6 {[%clk 0:03:06.6]} 21... Qc6 {[%clk 0:03:50]} 22. Be4
{[%clk 0:03:04.6]} 22... Qc8 {[%clk 0:03:45.1]} 23. Bxb7 {[%clk 0:02:50.7]}
23... Qxb7 {[%clk 0:03:43.6]} 24. c5 {[%clk 0:02:46.3]} 24... bxc5 {[%clk
0:03:40.7]} 25. Bxc5 {[%clk 0:02:44.4]} 25... Rc8 {[%clk 0:03:37.7]} 26. b4
{[%clk 0:02:38.5]} 26... a5 {[%clk 0:03:31.5]} 27. a3 {[%clk 0:02:37.3]} 27...
Nf4 {[%clk 0:03:20.6]} 28. Qb2 {[%clk 0:02:16.1]} 28... e5 {[%clk 0:03:10.4]}
29. g3 {[%clk 0:02:10.1]} 29... Nh3+ {[%clk 0:03:02.7]} 30. Kg2 {[%clk
0:02:03.6]} 30... Ng5 {[%clk 0:02:59.6]} 31. Rd3 {[%clk 0:01:55.9]} 31... Rxc5
{[%clk 0:02:55.9]} 32. Rfd1 {[%clk 0:01:22]} 32... axb4 {[%clk 0:02:35.1]} 33.
axb4 {[%clk 0:01:20.2]} 33... Rb5 {[%clk 0:02:30.2]} 34. Qa2 {[%clk 0:01:06.4]}
34... O-O {[%clk 0:02:25.9]} 35. Rxd7 {[%clk 0:01:04.1]} 35... Qxf3+ {[%clk
0:02:24.3]} 36. Kg1 {[%clk 0:01:00]} 36... Nh3# {[%clk 0:02:19.7]} 0-1

[Event "Live Chess"]
[Site "Chess.com"]
[Date "2023.05.20"]
[Round "-"]
[White "manthanit"]
[Black "BJAW87"]
[Result "1-0"]
[WhiteElo "1020"]
[BlackElo "1420"]
[TimeControl "300"]
[EndTime "14:48:26 PDT"]
[Termination "manthanit won by resignation"]

1. e4 {[%clk 0:04:54.5]} 1... c6 {[%clk 0:04:56.5]} 2. d4 {[%clk 0:04:53.8]}
2... d5 {[%clk 0:04:56.1]} 3. Nc3 {[%clk 0:04:52.5]} 3... dxe4 {[%clk
0:04:55.1]} 4. Nxe4 {[%clk 0:04:51.3]} 4... Nf6 {[%clk 0:04:53.6]} 5. Nxf6+
{[%clk 0:04:49.7]} 5... exf6 {[%clk 0:04:53.5]} 6. Nf3 {[%clk 0:04:48.2]} 6...
Bd6 {[%clk 0:04:50.9]} 7. Bc4 {[%clk 0:04:47.5]} 7... O-O {[%clk 0:04:49.9]} 8.
O-O {[%clk 0:04:46.7]} 8... Bg4 {[%clk 0:04:46.7]} 9. h3 {[%clk 0:04:45.8]} 9...
Bh5 {[%clk 0:04:45.2]} 10. b3 {[%clk 0:04:30.1]} 10... Nd7 {[%clk 0:04:43.6]}
11. Bb2 {[%clk 0:04:29.5]} 11... Nb6 {[%clk 0:04:25.5]} 12. Bd3 {[%clk
0:04:25.6]} 12... Qc7 {[%clk 0:04:22.7]} 13. Kh1 {[%clk 0:04:23]} 13... Rad8
{[%clk 0:04:17.9]} 14. c4 {[%clk 0:04:17.5]} 14... c5 {[%clk 0:04:15.3]} 15. Be2
{[%clk 0:03:56.5]} 15... Rfe8 {[%clk 0:04:13.2]} 16. Re1 {[%clk 0:03:54.1]}
16... cxd4 {[%clk 0:04:04.9]} 17. Nxd4 {[%clk 0:03:39]} 17... Bxe2 {[%clk
0:04:02.9]} 18. Rxe2 {[%clk 0:03:33.3]} 18... Be5 {[%clk 0:03:58.2]} 19. Rd2
{[%clk 0:03:23.2]} 19... Qc5 {[%clk 0:03:41.7]} 20. Nf3 {[%clk 0:02:55.4]} 20...
Bxb2 {[%clk 0:03:08.9]} 21. Rxd8 {[%clk 0:02:52.9]} 21... Rxd8 {[%clk
0:02:56.4]} 22. Qxd8+ {[%clk 0:02:50]} 22... Qf8 {[%clk 0:02:54.4]} 23. Qxf8+
{[%clk 0:02:49.2]} 23... Kxf8 {[%clk 0:02:53.8]} 24. Rd1 {[%clk 0:02:48.4]}
24... Ba3 {[%clk 0:02:47.4]} 25. Kg1 {[%clk 0:02:40.6]} 25... Ke7 {[%clk
0:02:44.5]} 26. Kf1 {[%clk 0:02:39.5]} 26... Nd7 {[%clk 0:02:43.8]} 27. Ke2
{[%clk 0:02:38.6]} 27... Nc5 {[%clk 0:02:43.2]} 28. Nd4 {[%clk 0:02:30]} 28...
Ne4 {[%clk 0:02:41.6]} 29. Rd3 {[%clk 0:02:20.3]} 29... Nc5 {[%clk 0:02:37.7]}
30. Re3+ {[%clk 0:02:17.2]} 30... Kd6 {[%clk 0:02:34.9]} 31. Nb5+ {[%clk
0:02:16.1]} 31... Kc6 {[%clk 0:02:31.9]} 32. Nxa3 {[%clk 0:02:15.1]} 32... b5
{[%clk 0:02:30.8]} 33. cxb5+ {[%clk 0:02:13]} 1-0

[Event "Live Chess"]
[Site "Chess.com"]
[Date "2023.05.20"]
[Round "-"]
[White "gmnorfolk"]
[Black "JanMur7"]
[Result "1-0"]
[WhiteElo "2127"]
[BlackElo "1984"]
[TimeControl "300"]
[EndTime "14:48:40 PDT"]
[Termination "gmnorfolk won by resignation"]

1. d4 {[%clk 0:04:57.3]} 1... Nf6 {[%clk 0:04:58.9]} 2. c4 {[%clk 0:04:55.1]}
2... e6 {[%clk 0:04:58.1]} 3. Nc3 {[%clk 0:04:53.7]} 3... d5 {[%clk 0:04:57.7]}
4. cxd5 {[%clk 0:04:52.4]} 4... exd5 {[%clk 0:04:56.9]} 5. Bg5 {[%clk 0:04:52]}
5... Be7 {[%clk 0:04:56.5]} 6. e3 {[%clk 0:04:51.5]} 6... h6 {[%clk 0:04:55.8]}
7. Bh4 {[%clk 0:04:49.7]} 7... O-O {[%clk 0:04:55]} 8. Bd3 {[%clk 0:04:49.1]}
8... c6 {[%clk 0:04:53]} 9. Qc2 {[%clk 0:04:47.7]} 9... Na6 {[%clk 0:04:37.9]}
10. a3 {[%clk 0:04:40.9]} 10... Nc7 {[%clk 0:04:35.6]} 11. Nge2 {[%clk
0:04:33.9]} 11... Bg4 {[%clk 0:04:25.6]} 12. f3 {[%clk 0:04:31.5]} 12... Bh5
{[%clk 0:04:24]} 13. O-O {[%clk 0:04:21.8]} 13... Qd7 {[%clk 0:04:21.6]} 14. Bf2
{[%clk 0:04:17.3]} 14... Qe8 {[%clk 0:03:46.7]} 15. Nf4 {[%clk 0:04:13]} 15...
g5 {[%clk 0:03:41.9]} 16. Nxh5 {[%clk 0:04:04.1]} 16... Nxh5 {[%clk 0:03:41.8]}
17. g4 {[%clk 0:03:55.8]} 17... Nf6 {[%clk 0:03:36.8]} 18. Bg3 {[%clk
0:03:54.7]} 18... Ne6 {[%clk 0:03:23.1]} 19. Bf5 {[%clk 0:03:53.8]} 19... Kg7
{[%clk 0:03:06.3]} 20. Kg2 {[%clk 0:03:50.3]} 20... Rd8 {[%clk 0:02:30.5]} 21.
Rad1 {[%clk 0:03:44]} 21... Bd6 {[%clk 0:02:23.4]} 22. Bf2 {[%clk 0:03:34.8]}
22... Rh8 {[%clk 0:02:10]} 23. h4 {[%clk 0:03:28.4]} 23... Qe7 {[%clk 0:01:55]}
24. Rh1 {[%clk 0:03:23]} 24... Rdg8 {[%clk 0:01:25.9]} 25. Rh3 {[%clk
0:03:20.1]} 25... Kf8 {[%clk 0:01:05.6]} 26. Rdh1 {[%clk 0:03:17.6]} 26... Kg7
{[%clk 0:00:40.8]} 27. Kf1 {[%clk 0:03:16]} 27... Nf8 {[%clk 0:00:26.1]} 28. e4
{[%clk 0:02:37]} 28... Ne6 {[%clk 0:00:18.8]} 29. Bxe6 {[%clk 0:02:23.3]} 29...
Qxe6 {[%clk 0:00:15.5]} 30. e5 {[%clk 0:02:20.6]} 30... Bxe5 {[%clk 0:00:14.6]}
31. dxe5 {[%clk 0:02:19.2]} 31... Qxe5 {[%clk 0:00:14.5]} 32. hxg5 {[%clk
0:02:13.6]} 32... hxg5 {[%clk 0:00:14.4]} 33. Rxh8 {[%clk 0:02:11.4]} 33... Rxh8
{[%clk 0:00:14.3]} 34. Rxh8 {[%clk 0:02:10.2]} 34... Kxh8 {[%clk 0:00:14.2]} 35.
Qf5 {[%clk 0:02:07.1]} 35... Qxf5 {[%clk 0:00:13.5]} 36. gxf5 {[%clk 0:02:06]}
36... a6 {[%clk 0:00:13.4]} 37. Bd4 {[%clk 0:02:04.4]} 37... Kg7 {[%clk
0:00:11.9]} 38. Nd1 {[%clk 0:02:02.1]} 38... b6 {[%clk 0:00:10.3]} 39. b4 {[%clk
0:02:01.1]} 39... c5 {[%clk 0:00:08.7]} 40. bxc5 {[%clk 0:02:00.2]} 40... bxc5
{[%clk 0:00:08.6]} 41. Be5 {[%clk 0:01:57.6]} 41... d4 {[%clk 0:00:07.6]} 42.
Nf2 {[%clk 0:01:55.7]} 42... c4 {[%clk 0:00:06.1]} 43. Bxd4 {[%clk 0:01:53.3]}
43... c3 {[%clk 0:00:06]} 44. Bxc3 {[%clk 0:01:52.2]} 1-0

[Event "Live Chess"]
[Site "Chess.com"]
[Date "2023.05.20"]
[Round "-"]
[White "raminguy"]
[Black "siddu198"]
[Result "1/2-1/2"]
[WhiteElo "1956"]
[BlackElo "1631"]
[TimeControl "300"]
[EndTime "14:49:04 PDT"]
[Termination "Game drawn by repetition"]

1. d4 {[%clk 0:04:59]} 1... d5 {[%clk 0:04:59]} 2. Nc3 {[%clk 0:04:58.1]} 2...
Nf6 {[%clk 0:04:57.9]} 3. Bf4 {[%clk 0:04:57.3]} 3... Bf5 {[%clk 0:04:57.3]} 4.
e3 {[%clk 0:04:56.2]} 4... Nc6 {[%clk 0:04:56.8]} 5. Nf3 {[%clk 0:04:55.5]} 5...
a6 {[%clk 0:04:56.2]} 6. Ne5 {[%clk 0:04:54.2]} 6... e6 {[%clk 0:04:52.2]} 7. g4
{[%clk 0:04:53.1]} 7... Bg6 {[%clk 0:04:51]} 8. h4 {[%clk 0:04:52.2]} 8... h6
{[%clk 0:04:48.5]} 9. Nxg6 {[%clk 0:04:51.1]} 9... fxg6 {[%clk 0:04:47.4]} 10.
Qd3 {[%clk 0:04:51]} 10... Qe7 {[%clk 0:04:27.8]} 11. Qxg6+ {[%clk 0:04:48.6]}
11... Qf7 {[%clk 0:04:27.7]} 12. Qxf7+ {[%clk 0:04:46.3]} 12... Kxf7 {[%clk
0:04:27.6]} 13. Bxc7 {[%clk 0:04:42.3]} 13... Nxg4 {[%clk 0:04:25.1]} 14. Be2
{[%clk 0:04:34.1]} 14... Nf6 {[%clk 0:04:23]} 15. O-O-O {[%clk 0:04:27.6]} 15...
Bb4 {[%clk 0:04:20.6]} 16. Be5 {[%clk 0:04:13.3]} 16... Nxe5 {[%clk 0:04:13.2]}
17. dxe5 {[%clk 0:04:12.1]} 17... Bxc3 {[%clk 0:04:12.8]} 18. exf6 {[%clk
0:04:10.9]} 18... Bxf6 {[%clk 0:04:11.3]} 19. e4 {[%clk 0:04:05.2]} 19... Rad8
{[%clk 0:04:03.5]} 20. exd5 {[%clk 0:04:04]} 20... Rxd5 {[%clk 0:04:03.4]} 21.
Rxd5 {[%clk 0:04:02.6]} 21... exd5 {[%clk 0:04:03.3]} 22. Rd1 {[%clk 0:04:01.3]}
22... d4 {[%clk 0:04:00.7]} 23. h5 {[%clk 0:03:58.4]} 23... Rd8 {[%clk
0:03:57.2]} 24. Bf3 {[%clk 0:03:51.7]} 24... b6 {[%clk 0:03:51.5]} 25. Be4
{[%clk 0:03:46]} 25... a5 {[%clk 0:03:41.7]} 26. f3 {[%clk 0:03:44.8]} 26... b5
{[%clk 0:03:40]} 27. Re1 {[%clk 0:03:43.2]} 27... b4 {[%clk 0:03:27.8]} 28. Bg6+
{[%clk 0:03:41.2]} 28... Kg8 {[%clk 0:03:27.4]} 29. Re6 {[%clk 0:03:39.3]} 29...
Rc8 {[%clk 0:03:05.6]} 30. Kd1 {[%clk 0:03:31.7]} 30... Ra8 {[%clk 0:03:00.5]}
31. Kd2 {[%clk 0:03:24.6]} 31... Kf8 {[%clk 0:02:55.7]} 32. Kd3 {[%clk
0:03:21.3]} 32... a4 {[%clk 0:02:49.7]} 33. b3 {[%clk 0:03:19.5]} 33... axb3
{[%clk 0:02:48.4]} 34. axb3 {[%clk 0:03:18.1]} 34... Rc8 {[%clk 0:02:44.6]} 35.
f4 {[%clk 0:03:02.8]} 35... Rc3+ {[%clk 0:02:39.4]} 36. Ke4 {[%clk 0:02:55.9]}
36... Re3+ {[%clk 0:02:37.9]} 37. Kd5 {[%clk 0:02:53.1]} 37... Rxe6 {[%clk
0:02:12.3]} 38. Kxe6 {[%clk 0:02:53]} 38... Bh4 {[%clk 0:02:09.2]} 39. f5 {[%clk
0:02:50]} 39... Bf6 {[%clk 0:02:02.8]} 40. Kd5 {[%clk 0:02:47.8]} 40... Ke7
{[%clk 0:01:53.9]} 41. Kc4 {[%clk 0:02:46.7]} 41... d3 {[%clk 0:01:34.6]} 42.
Kxd3 {[%clk 0:02:44.8]} 42... Bc3 {[%clk 0:01:34.1]} 43. Kc4 {[%clk 0:02:38.4]}
43... Kd6 {[%clk 0:01:33.1]} 44. Bh7 {[%clk 0:02:33.5]} 44... Ke5 {[%clk
0:01:28.4]} 45. Bg6 {[%clk 0:02:29.9]} 45... Kf4 {[%clk 0:01:21.6]} 46. Kd3
{[%clk 0:02:26]} 46... Ke5 {[%clk 0:01:19.6]} 47. Ke3 {[%clk 0:02:23.6]} 47...
Kf6 {[%clk 0:01:12.1]} 48. Ke4 {[%clk 0:02:21.9]} 48... Kg5 {[%clk 0:01:09.9]}
49. Kd5 {[%clk 0:02:19.6]} 49... Kf6 {[%clk 0:01:09.3]} 50. Kd6 {[%clk
0:02:17.9]} 50... Be5+ {[%clk 0:01:07.9]} 51. Kd7 {[%clk 0:02:16]} 51... Bc3
{[%clk 0:01:07.3]} 52. Ke8 {[%clk 0:02:14.7]} 52... Be5 {[%clk 0:01:06.4]} 53.
Kd7 {[%clk 0:02:12.4]} 53... Bc3 {[%clk 0:01:05.8]} 54. Kc6 {[%clk 0:02:12]}
54... Be5 {[%clk 0:01:05]} 55. Kb5 {[%clk 0:02:11.7]} 55... Bc3 {[%clk
0:01:04.5]} 56. Kc4 {[%clk 0:02:11.1]} 56... Be1 {[%clk 0:01:02.7]} 57. Bh7
{[%clk 0:02:09.2]} 57... Kg5 {[%clk 0:00:58.7]} 58. Bg6 {[%clk 0:02:04.2]} 58...
Kf6 {[%clk 0:00:57.5]} 59. Kd3 {[%clk 0:02:02.7]} 59... Kg5 {[%clk 0:00:55.3]}
60. Ke2 {[%clk 0:02:00.8]} 60... Bc3 {[%clk 0:00:54.5]} 61. Kd1 {[%clk
0:01:58.9]} 61... Kf6 {[%clk 0:00:53.2]} 62. Ke2 {[%clk 0:01:58.4]} 62... Kg5
{[%clk 0:00:52.3]} 63. Kd3 {[%clk 0:01:57]} 63... Be1 {[%clk 0:00:49.7]} 64. Ke2
{[%clk 0:01:51.4]} 64... Bc3 {[%clk 0:00:48.9]} 1/2-1/2

[Event "Live Chess"]
[Site "Chess.com"]
[Date "2023.05.20"]
[Round "-"]
[White "Delacorta"]
[Black "ViktorTheCoolBoy"]
[Result "0-1"]
[WhiteElo "1424"]
[BlackElo "2513"]
[TimeControl "300"]
[EndTime "14:49:04 PDT"]
[Termination "ViktorTheCoolBoy won by resignation"]

1. d4 {[%clk 0:04:58.1]} 1... d5 {[%clk 0:04:56.4]} 2. Nf3 {[%clk 0:04:56.9]}
2... Bf5 {[%clk 0:04:52.8]} 3. e3 {[%clk 0:04:54.6]} 3... e6 {[%clk 0:04:50]} 4.
Bd3 {[%clk 0:04:42.7]} 4... Bxd3 {[%clk 0:04:48.4]} 5. Qxd3 {[%clk 0:04:40.5]}
5... c6 {[%clk 0:04:46.2]} 6. b3 {[%clk 0:04:35.3]} 6... Nf6 {[%clk 0:04:43.8]}
7. Ba3 {[%clk 0:04:34.1]} 7... Bxa3 {[%clk 0:04:41.5]} 8. Nxa3 {[%clk
0:04:33.2]} 8... Qa5+ {[%clk 0:04:41]} 9. Qd2 {[%clk 0:04:09.3]} 9... Qxa3
{[%clk 0:04:39.6]} 10. b4 {[%clk 0:04:08.8]} 10... Nbd7 {[%clk 0:04:35.9]} 11.
O-O {[%clk 0:04:03.4]} 11... Nb6 {[%clk 0:04:34.6]} 0-1

[Event "Live Chess"]
[Site "Chess.com"]
[Date "2023.05.20"]
[Round "-"]
[White "GMHarry-youtube"]
[Black "AbilifyXL"]
[Result "0-1"]
[WhiteElo "2027"]
[BlackElo "1970"]
[TimeControl "300"]
[EndTime "14:49:06 PDT"]
[Termination "AbilifyXL won by resignation"]

1. e4 {[%clk 0:04:58.1]} 1... d5 {[%clk 0:04:59.7]} 2. exd5 {[%clk 0:04:58]}
2... Qxd5 {[%clk 0:04:49.9]} 3. Nc3 {[%clk 0:04:57.9]} 3... Qa5 {[%clk
0:04:48.9]} 4. d4 {[%clk 0:04:52]} 4... c6 {[%clk 0:04:48]} 5. Nf3 {[%clk
0:04:51.2]} 5... Nf6 {[%clk 0:04:47.1]} 6. Bc4 {[%clk 0:04:50.3]} 6... Bg4
{[%clk 0:04:44.7]} 7. h3 {[%clk 0:04:34.2]} 7... Bh5 {[%clk 0:04:39.7]} 8. g4
{[%clk 0:04:26.9]} 8... Bg6 {[%clk 0:04:38.3]} 9. Ne5 {[%clk 0:04:26.4]} 9...
Nbd7 {[%clk 0:04:37.1]} 10. f4 {[%clk 0:04:22.2]} 10... e6 {[%clk 0:04:34.5]}
11. h4 {[%clk 0:04:16.4]} 11... Be4 {[%clk 0:04:30.3]} 12. O-O {[%clk
0:04:10.5]} 12... Bd5 {[%clk 0:04:28]} 13. Bxd5 {[%clk 0:04:07.2]} 13... Nxd5
{[%clk 0:04:26.3]} 14. Nxd7 {[%clk 0:04:05]} 14... Kxd7 {[%clk 0:04:25.4]} 15.
Nxd5 {[%clk 0:04:02.5]} 15... Qxd5 {[%clk 0:04:24]} 16. b3 {[%clk 0:03:59.6]}
16... Be7 {[%clk 0:04:19.8]} 17. c4 {[%clk 0:03:57.5]} 17... Qe4 {[%clk
0:04:15.8]} 18. g5 {[%clk 0:03:51.6]} 18... Rad8 {[%clk 0:04:12.9]} 19. Qf3
{[%clk 0:03:49.3]} 19... Qf5 {[%clk 0:04:04.5]} 20. Rd1 {[%clk 0:03:40.5]} 20...
Kc8 {[%clk 0:04:03.4]} 21. Bb2 {[%clk 0:03:35.8]} 21... Rd7 {[%clk 0:04:01.7]}
22. Rac1 {[%clk 0:03:34.2]} 22... Rhd8 {[%clk 0:03:57.7]} 23. Kf2 {[%clk
0:03:31.7]} 23... h6 {[%clk 0:03:54]} 24. Re1 {[%clk 0:03:15.3]} 24... Bd6
{[%clk 0:03:31.6]} 25. Re4 {[%clk 0:03:10.6]} 25... Bc7 {[%clk 0:03:23.8]} 26.
d5 {[%clk 0:02:53.6]} 26... exd5 {[%clk 0:03:17.9]} 27. cxd5 {[%clk 0:02:37.3]}
27... Rxd5 {[%clk 0:03:16.9]} 28. Rc2 {[%clk 0:02:17.7]} 28... Rd2+ {[%clk
0:03:14.1]} 29. Rxd2 {[%clk 0:02:12.2]} 29... Rxd2+ {[%clk 0:03:12.8]} 30. Re2
{[%clk 0:02:11.2]} 30... Rxe2+ {[%clk 0:03:04.3]} 31. Kxe2 {[%clk 0:02:10.1]}
31... Qc2+ {[%clk 0:03:02.7]} 32. Kf1 {[%clk 0:02:07.2]} 32... Qxb2 {[%clk
0:03:01.5]} 33. gxh6 {[%clk 0:02:03.6]} 33... gxh6 {[%clk 0:02:59.1]} 34. Qe4
{[%clk 0:02:02.4]} 34... Qc1+ {[%clk 0:02:57.6]} 35. Kg2 {[%clk 0:02:00.2]}
35... Qxf4 {[%clk 0:02:54.6]} 36. Qe8+ {[%clk 0:01:48.4]} 36... Bd8 {[%clk
0:02:53.6]} 37. Qe1 {[%clk 0:01:46]} 37... Qxh4 {[%clk 0:02:48.3]} 38. Qe2
{[%clk 0:01:36.6]} 38... Qg5+ {[%clk 0:02:46]} 39. Kh2 {[%clk 0:01:33.8]} 39...
Bc7+ {[%clk 0:02:44.4]} 40. Kh1 {[%clk 0:01:31.5]} 40... Qh4+ {[%clk 0:02:38.2]}
41. Kg1 {[%clk 0:01:26.3]} 41... Qh2+ {[%clk 0:02:32.5]} 42. Qxh2 {[%clk
0:01:24]} 42... Bxh2+ {[%clk 0:02:32.4]} 43. Kxh2 {[%clk 0:01:23.9]} 43... Kd7
{[%clk 0:02:31.8]} 44. Kh3 {[%clk 0:01:23.3]} 44... Ke6 {[%clk 0:02:31.3]} 45.
Kh4 {[%clk 0:01:23.2]} 45... Kf6 {[%clk 0:02:30.6]} 46. Kh5 {[%clk 0:01:22.4]}
46... Kg7 {[%clk 0:02:29.9]} 47. b4 {[%clk 0:01:17.8]} 47... b6 {[%clk
0:02:28.7]} 48. a3 {[%clk 0:01:15.8]} 48... c5 {[%clk 0:02:27.9]} 49. b5 {[%clk
0:01:12.4]} 49... c4 {[%clk 0:02:26.4]} 50. Kg4 {[%clk 0:01:11.9]} 50... Kf6
{[%clk 0:02:23.8]} 51. Kf3 {[%clk 0:01:10.4]} 51... h5 {[%clk 0:02:22.7]} 52.
Ke3 {[%clk 0:01:08.4]} 52... h4 {[%clk 0:02:21.8]} 53. Kd4 {[%clk 0:01:05.6]}
53... h3 {[%clk 0:02:20.4]} 54. a4 {[%clk 0:01:05.5]} 54... h2 {[%clk 0:02:19]}
55. a5 {[%clk 0:01:05.4]} 55... h1=Q {[%clk 0:02:17]} 56. axb6 {[%clk
0:01:05.3]} 56... axb6 {[%clk 0:02:15.9]} 57. Kxc4 {[%clk 0:01:04.1]} 57... Qh5
{[%clk 0:02:13]} 58. Kb4 {[%clk 0:01:01.9]} 58... Qc5+ {[%clk 0:02:12.9]} 59.
Ka4 {[%clk 0:01:00.1]} 59... Qc4+ {[%clk 0:02:12.1]} 60. Ka3 {[%clk 0:00:59.4]}
60... Qxb5 {[%clk 0:02:11]} 61. Ka2 {[%clk 0:00:59.3]} 61... Ke5 {[%clk
0:02:10.3]} 62. Ka1 {[%clk 0:00:55.4]} 62... Kd4 {[%clk 0:02:09.5]} 63. Ka2
{[%clk 0:00:55.3]} 0-1